bitfinex/quotes_ETHUSD_20241024
["timestamp","ask_amount","ask_price","bid_price","bid_amount"]
[1729774738293,3.95308,2529.7,2529.3,0.7956]
[1729774738509,4.45061975,2529.8,2529.3,4.74923]
[1729774739138,3.95321,2529.6,2529.3,0.7956]
[1729774739340,3.95306,2529.7,2529.3,0.7956]
[1729774740098,4.50333,2529.6,2528.9,4.74209]
[1729774740614,4.50333,2529.6,2529.0,3.95406]
[1729774740813,4.50331,2529.6,2529.0,3.95406]
[1729774741627,4.50331,2529.6,2529.1,3.95396]
[1729774741833,4.50331,2529.6,2529.1,7.90786]
[1729774741834,0.55,2529.6,2529.1,7.90786]
[1729774742548,0.55,2529.6,2529.2,0.8208]
[1729774742912,0.55,2529.7,2529.2,4.77452]
[1729774743114,0.55,2529.7,2529.3,3.95364]
[1729774743312,0.55,2529.8,2529.2,5.251972]
[1729774743639,3.95311,2529.7,2529.2,0.8208]
[1729774744241,3.95311,2529.7,2529.2,4.77455]
[1729774744658,3.95311,2529.7,2529.2,0.8208]
[1729774744949,3.95311,2529.7,2529.2,4.77455]
[1729774745636,7.90627,2529.7,2529.2,0.8208]
[1729774745845,3.95311,2529.7,2529.2,0.8208]
[1729774746031,3.95311,2529.7,2529.2,4.77457]
[1729774747747,0.55,2529.8,2529.2,4.77457]
[1729774747948,0.8001,2529.9,2529.5,3.95326]
[1729774748108,0.8001,2529.9,2529.3,3.95353]
[1729774748109,3.95284,2529.9,2529.3,3.95353]
[1729774748313,7.90571,2529.9,2529.3,3.95353]
[1729774748843,3.95284,2529.9,2529.4,3.95337]
[1729774749558,3.95284,2529.9,2529.3,3.95353]
[1729774749807,3.95284,2529.9,2529.3,4.5182475]
[1729774750118,3.95284,2529.9,2529.4,3.95348]
[1729774750963,3.95258,2530.0,2529.4,3.95343]
[1729774751455,3.95258,2530.0,2529.5,0.0977688]
[1729774751656,3.95258,2530.0,2529.5,4.0510388]
[1729774752157,4.5025,2530.1,2529.5,0.0977688]
[1729774752361,5.32828858,2530.1,2529.5,0.0977688]
[1729774752534,3.95265,2530.0,2529.5,4.0511088]
[1729774752730,3.95265,2530.0,2529.5,3.95334]
[1729774753049,3.95265,2530.0,2529.6,0.0976471]
[1729774753355,3.95277,2529.9,2529.6,0.0976471]
[1729774753736,8.91598386,2530.0,2529.4,3.7636]
[1729774753960,4.96327386,2530.0,2529.7,0.09752541]
[1729774754128,4.96327386,2530.0,2529.4,3.7636]
[1729774754331,3.9528,2529.9,2529.8,0.09740372]
[1729774754562,4.72284,2529.8,2529.2,0.8208]
[1729774754735,3.95307,2529.7,2529.2,4.77458]
[1729774755135,4.7228,2529.8,2529.2,4.77458]
[1729774755564,4.7228,2529.8,2529.2,8.72833]
[1729774756066,3.95363,2529.4,2528.8,4.76052]
[1729774756359,4.71723,2529.4,2528.8,4.76052]
[1729774757170,3.95374,2529.3,2528.8,0.8062]
[1729774757397,3.95382,2529.2,2528.5,4.76574]
[1729774757608,3.69368576,2529.4,2528.5,0.8109]
[1729774757609,3.9544,2528.9,2528.5,0.8109]
[1729774758095,3.9544,2528.9,2528.4,3.95503]
[1729774760077,0.8047,2529.0,2528.4,3.95503]
[1729774760286,4.75884,2529.0,2528.4,3.95503]
[1729774760603,4.75884,2529.0,2528.4,3.95499]
[1729774761722,4.74357185,2529.0,2528.4,7.90998]
[1729774761876,4.74357185,2529.0,2528.5,3.95489]
[1729774762204,0.78943185,2529.0,2528.5,3.95486]
[1729774762501,3.95383,2529.2,2528.6,4.74438]
[1729774762671,3.95383,2529.2,2528.7,3.95459]
[1729774762998,4.5037,2529.3,2528.7,7.90908]
[1729774763211,4.5037,2529.3,2528.7,3.95449]
[1729774763499,4.5037,2529.3,2528.8,3.90444]
[1729774763678,0.55,2529.3,2528.8,3.90444]
[1729774765244,0.55,2529.3,2528.8,3.95444]
[1729774766244,7.75127,2529.5,2528.9,3.95418]
[1729774766432,4.75127,2529.5,2529.0,0.90322854]
[1729774766816,4.75127,2529.5,2529.0,4.85733854]
[1729774767347,4.75127,2529.5,2529.0,0.90322854]
[1729774769369,3.95337,2529.5,2529.0,4.85733854]
[1729774769872,3.95337,2529.5,2529.0,5.82547869]
[1729774771036,4.5032,2529.6,2529.1,3.95396]
[1729774771241,3.9532,2529.6,2529.2,0.098588]
[1729774771466,3.95306,2529.7,2529.2,0.098588]
[1729774771767,4.50299,2529.8,2529.2,4.052378]
[1729774771972,0.808,2530.0,2529.4,3.9534]
[1729774772182,0.808,2530.0,2529.3,0.7664]
[1729774772183,3.808,2530.0,2529.3,0.7664]
[1729774772330,3.808,2530.0,2529.5,0.09817626]
[1729774772331,3.95319,2529.6,2529.5,0.09817626]
[1729774772534,5.532116,2529.6,2529.5,0.09817626]
[1729774772833,3.95347,2529.5,2529.0,0.7906]
[1729774773261,3.95347,2529.5,2529.0,4.74471]
[1729774774769,3.95347,2529.5,2529.0,8.69877]
[1729774775236,3.95347,2529.5,2529.0,4.74465]
[1729774775549,1.578926,2529.6,2529.1,3.95397]
[1729774775550,4.7415,2529.6,2529.1,3.95397]
[1729774775877,0.7883,2529.6,2529.2,3.95373]
[1729774776046,3.95304,2529.7,2529.2,3.95373]
[1729774776449,3.95304,2529.7,2529.1,3.763406]
[1729774776764,4.71489,2529.8,2529.3,7.90723]
[1729774776961,4.71489,2529.8,2529.3,3.95358]
[1729774778678,3.95306,2529.7,2529.2,3.95379]
[1729774778972,4.71489,2529.8,2529.3,3.95362]
[1729774779671,4.71489,2529.8,2529.3,3.95357]
[1729774779976,3.95274,2529.9,2529.4,0.8004]
[1729774780146,0.7627,2530.0,2529.4,0.8004]
[1729774780346,4.71506,2530.2,2529.7,3.95301]
[1729774780546,3.95248,2530.1,2529.4,0.8004]
[1729774780847,3.95248,2530.1,2529.6,3.95308]
[1729774781179,0.7627,2530.2,2529.6,8.776847]
[1729774781344,0.7627,2530.2,2529.7,3.95302]
[1729774781541,7.90492,2530.1,2529.7,0.09767286]
[1729774781738,3.95242,2530.1,2529.7,0.09767286]
[1729774781944,3.95268,2530.0,2529.7,0.09767286]
[1729774782157,3.95288,2529.8,2529.7,0.09767286]
[1729774782359,3.95288,2529.8,2529.4,0.8004]
[1729774782860,3.95281,2529.9,2529.5,0.09791625]
[1729774785950,3.95258,2530.0,2529.5,4.05120625]
[1729774787751,3.95243,2530.1,2529.5,4.05116625]
[1729774787990,3.95243,2530.1,2529.6,4.43825662]
[1729774788349,3.95243,2530.1,2529.7,0.09744779]
[1729774789084,3.95243,2530.1,2529.6,3.95316]
[1729774789292,7.90496,2530.1,2529.7,0.09744779]
[1729774789491,3.95243,2530.1,2529.7,0.09744779]
[1729774789690,3.95259,2530.0,2529.5,3.9532]
[1729774789919,3.95259,2530.0,2529.8,0.09732611]
[1729774790079,3.95259,2530.0,2529.5,3.9532]
[1729774790267,3.95259,2530.0,2529.9,0.09720443]
[1729774790470,3.95272,2529.9,2529.4,0.8004]
[1729774790958,3.95272,2529.9,2529.4,4.75384]
[1729774791168,3.95296,2529.8,2529.4,0.8004]
[1729774791575,3.95278,2529.9,2529.4,0.8004]
[1729774792206,3.95278,2529.9,2529.4,4.7539]
[1729774792389,3.95278,2529.9,2529.4,0.8004]
[1729774792576,3.95278,2529.9,2529.4,4.7539]
[1729774792907,3.95289,2529.8,2529.4,0.8004]
[1729774793271,3.95331,2529.6,2529.0,3.95403]
[1729774793469,3.95331,2529.6,2529.1,3.95392]
[1729774794104,4.50306,2529.7,2529.2,3.95375]
[1729774794306,4.50306,2529.7,2529.3,0.8313]
[1729774795382,3.95279,2529.9,2529.4,3.95342]
[1729774795582,3.95279,2529.9,2529.4,7.90684]
[1729774795974,4.821331,2529.9,2529.4,7.90684]
[1729774796305,4.821331,2529.9,2529.5,3.95334]
[1729774796509,4.821331,2529.9,2529.5,0.0977261]
[1729774797087,4.821331,2529.9,2529.5,4.0510661]
[1729774797285,0.868541,2529.9,2529.5,4.0510661]
[1729774797719,4.821261,2529.9,2529.5,4.0510661]
[1729774798870,0.55,2530.0,2529.5,8.0042961]
[1729774799110,0.55,2530.0,2529.5,8.0042361]
[1729774799111,4.50257,2530.0,2529.5,8.0042361]
[1729774799283,3.95257,2530.0,2529.6,3.95318]
[1729774799486,3.95227,2530.2,2529.6,4.05075724]
[1729774799675,3.95244,2530.1,2529.6,4.05075724]
[1729774800280,3.95244,2530.1,2529.6,0.09757724]
[1729774800281,3.95273,2529.9,2529.6,0.09757724]
[1729774800712,3.95265,2530.0,2529.6,0.09757724]
[1729774801013,5.122571,2530.1,2529.6,4.05075724]
[1729774801212,5.122571,2530.1,2529.6,3.86075724]
[1729774802015,1.170131,2530.1,2529.7,4.7611]
[1729774802215,4.71086,2530.5,2530.0,3.95256]
[1729774802479,3.95186,2530.5,2530.1,0.8081]
[1729774803429,4.71058,2530.7,2530.1,4.76045]
[1729774803430,3.95163,2530.6,2530.1,4.76045]
[1729774803609,3.9518,2530.5,2530.1,0.8081]
[1729774804109,3.95181,2530.5,2530.1,0.8081]
[1729774804422,3.95195,2530.4,2529.9,4.76163]
[1729774804623,0.395195,2530.3,2529.9,4.76163]
[1729774804848,3.95195,2530.4,2529.9,0.809]
[1729774805127,3.95195,2530.4,2529.9,4.76165]
[1729774805338,7.90398,2530.4,2529.9,4.76165]
[1729774805628,7.90403,2530.4,2529.9,0.809]
[1729774805816,3.95195,2530.4,2529.9,4.76166]
[1729774806405,3.95218,2530.3,2529.9,4.76166]
[1729774806594,4.8289431,2530.4,2529.9,4.76166]
[1729774807103,3.95212,2530.3,2529.9,4.76171]
[1729774807292,0.8769931,2530.4,2529.9,4.7617]
[1729774807491,3.95212,2530.3,2529.9,4.7617]
[1729774807689,3.95204,2530.4,2529.9,4.76165]
[1729774807919,3.95204,2530.4,2530.0,3.9525]
[1729774808120,3.95181,2530.5,2530.0,3.9525]
[1729774808310,3.9516,2530.7,2529.9,0.809]
[1729774808492,3.9516,2530.7,2530.3,0.8311]
[1729774808714,3.95139,2530.8,2530.3,4.78309]
[1729774809331,3.95139,2530.8,2530.3,0.8311]
[1729774809332,3.95151,2530.7,2530.3,0.8311]
[1729774809845,3.95139,2530.8,2530.3,4.78318]
[1729774810331,3.95153,2530.7,2530.3,0.8311]
[1729774810537,3.95139,2530.8,2530.3,4.78318]
[1729774811026,4.819712,2530.8,2530.3,4.78318]
[1729774811199,3.95139,2530.8,2530.3,4.78318]
[1729774811596,3.95123,2530.9,2530.4,3.95185]
[1729774811795,3.95101,2531.0,2530.4,3.95184]
[1729774812036,3.95101,2531.0,2530.5,3.9517]
[1729774812233,3.95101,2531.0,2530.6,0.8089]
[1729774812435,3.95101,2531.0,2530.6,4.76045]
[1729774812436,0.868943,2531.0,2530.6,4.76045]
[1729774812649,3.95082,2531.2,2530.6,4.76045]
[1729774812815,7.90162,2531.2,2530.6,4.76045]
[1729774813010,3.95086,2531.1,2530.6,4.76045]
[1729774813338,3.9508,2531.2,2530.7,3.95138]
[1729774813919,0.8317,2531.3,2530.6,4.76045]
[1729774814241,5.260518,2531.3,2530.7,3.95136]
[1729774814553,3.95076,2531.2,2530.7,3.95134]
[1729774817462,3.95076,2531.2,2530.6,4.76045]
[1729774817463,0.55,2531.3,2530.6,0.8089]
[1729774817633,0.55,2531.3,2530.4,0.7958]
[1729774817634,3.95139,2530.8,2530.4,0.7958]
[1729774817956,0.395139,2530.7,2530.4,0.7958]
[1729774818162,3.95123,2530.9,2530.4,4.74767]
[1729774818449,3.95133,2530.8,2530.4,0.7958]
[1729774818650,3.95118,2530.9,2530.4,4.74767]
[1729774818852,3.95118,2530.9,2530.4,8.69951]
[1729774819153,3.95086,2531.1,2530.5,3.95178]
[1729774819455,4.427966,2531.0,2530.5,3.95178]
[1729774819869,0.476936,2531.0,2530.4,4.74764]
[1729774820157,4.427956,2531.0,2530.5,3.95176]
[1729774820521,4.427956,2531.0,2530.6,3.95162]
[1729774820725,3.9505,2531.4,2530.8,3.95129]
[1729774820947,0.7752,2531.5,2530.7,0.7574]
[1729774821147,3.95053,2531.3,2530.7,0.7574]
[1729774821352,3.95076,2531.2,2530.7,0.7574]
[1729774821552,3.95076,2531.2,2530.7,4.70881]
[1729774823347,3.95047,2531.4,2530.9,3.95109]
[1729774823962,3.95047,2531.4,2531.0,0.09179197]
[1729774824467,3.95024,2531.5,2531.0,4.04279197]
[1729774824826,0.8223,2531.6,2531.1,0.8176]
[1729774825023,4.427463,2531.5,2531.1,4.76838]
[1729774825228,0.477233,2531.5,2531.2,0.09154886]
[1729774825669,4.427463,2531.5,2531.2,0.09154886]
[1729774826353,0.477233,2531.5,2531.2,0.09154886]
[1729774827087,4.427473,2531.5,2531.2,0.09154886]
[1729774828675,3.95053,2531.3,2531.2,0.09154886]
[1729774828884,4.77153,2531.3,2531.2,0.09154886]
[1729774829381,4.3932773,2531.4,2531.2,0.09154886]
[1729774829675,4.3932473,2531.4,2530.9,4.74705]
[1729774829878,5.248493,2531.5,2531.3,0.09142733]
[1729774830081,3.95038,2531.4,2531.0,0.8156]
[1729774832196,3.95038,2531.4,2531.1,0.09167041]
[1729774833855,0.821,2531.5,2531.1,0.09167041]
[1729774834077,3.95017,2531.6,2531.1,4.04250041]
[1729774834390,4.822857,2531.6,2531.1,0.09167041]
[1729774834578,3.95023,2531.5,2531.1,0.09167041]
[1729774834779,4.822857,2531.6,2531.1,0.09167041]
[1729774835088,0.8268,2531.7,2531.2,4.71432]
[1729774835089,3.94991,2531.7,2531.2,4.71432]
[1729774835258,3.94979,2531.8,2531.3,3.95053]
[1729774835455,0.8049,2532.0,2531.4,3.95029]
[1729774835660,4.75443,2532.0,2531.5,3.95021]
[1729774835899,0.870381,2531.9,2531.5,4.04118885]
[1729774836194,4.820001,2531.9,2531.5,4.04118885]
[1729774836409,4.820001,2531.9,2531.5,0.09097885]
[1729774837462,0.870381,2531.9,2531.6,0.8306]
[1729774838073,0.870381,2531.9,2531.7,0.09073584]
[1729774838472,4.76361,2532.2,2531.7,4.04061584]
[1729774838679,7.89806,2532.3,2531.8,3.94966]
[1729774838957,3.94898,2532.3,2531.9,3.94957]
[1729774839197,3.94884,2532.4,2532.0,4.71481]
[1729774839361,3.94884,2532.4,2532.0,0.7654]
[1729774839561,3.94884,2532.4,2532.1,0.09024993]
[1729774840678,3.94898,2532.3,2532.1,0.09024993]
[1729774841281,3.94882,2532.4,2532.1,0.09024993]
[1729774841966,3.94902,2532.3,2532.1,0.09024993]
[1729774842191,3.94882,2532.4,2532.1,0.09024993]
[1729774842374,3.94901,2532.3,2532.1,0.09024993]
[1729774842579,4.48120445,2532.4,2532.1,0.09024993]
[1729774843705,8.43015445,2532.4,2532.1,0.09024993]
[1729774843905,4.48120445,2532.4,2532.1,0.09024993]
[1729774846605,3.94913,2532.2,2532.1,0.09024993]
[1729774847003,3.94913,2532.2,2531.4,3.0]
[1729774847004,3.94987,2531.8,2531.4,0.75]
[1729774847204,3.48008576,2532.3,2531.5,0.09023501]
[1729774847205,3.95012,2531.6,2531.5,0.09023501]
[1729774847409,0.7661,2531.7,2531.5,0.09023501]
[1729774847704,3.95007,2531.6,2531.2,0.75]
[1729774848066,3.95007,2531.6,2531.3,0.09047806]
[1729774848498,3.95007,2531.6,2531.2,0.75]
[1729774848499,4.71567,2532.0,2531.2,0.75]
[1729774848701,3.94969,2531.9,2531.4,4.04072653]
[1729774849004,3.94969,2531.9,2531.4,7.90068]
[1729774849005,4.816226,2531.9,2531.4,7.90068]
[1729774849206,0.7661,2532.0,2531.6,0.75]
[1729774849416,4.49937,2532.1,2531.6,0.75]
[1729774849571,4.49937,2532.1,2531.7,0.09005397]
[1729774849766,4.71532,2532.2,2531.7,0.09005397]
[1729774850024,3.94934,2532.1,2531.7,0.09005397]
[1729774850711,3.94946,2532.0,2531.7,0.09005397]
[1729774851278,0.471544,2532.1,2531.7,0.09005397]
[1729774851481,4.71523,2532.2,2531.7,0.09005397]
[1729774851685,3.94929,2532.1,2531.7,0.09005397]
[1729774853000,7.89869,2532.1,2531.7,0.09005397]
[1729774853209,4.815769,2532.1,2531.7,0.09005397]
[1729774853721,3.94945,2532.0,2531.7,0.09005397]
[1729774854030,0.866479,2532.1,2531.7,0.09005397]
[1729774854184,5.29995,2531.8,2531.1,4.749]
[1729774854382,3.94998,2531.7,2531.1,4.749]
[1729774854582,3.94998,2531.7,2531.2,0.09066157]
[1729774855070,3.95013,2531.6,2531.2,0.09066157]
[1729774855198,3.95028,2531.5,2531.2,0.09066157]
[1729774856116,4.480113,2531.6,2531.2,0.09066157]
[1729774856486,0.55,2531.4,2531.2,0.09066157]
[1729774856987,0.55,2531.4,2530.9,3.95115]
[1729774857618,4.50039,2531.4,2531.0,0.09128042]
[1729774858011,5.08010642,2531.4,2531.0,0.09128042]
[1729774858521,5.08010642,2531.4,2531.1,0.09115886]
[1729774858727,5.08010642,2531.4,2530.9,3.95114]
[1729774858967,4.50039,2531.4,2531.2,0.09103731]
[1729774859129,4.50039,2531.4,2530.9,3.95114]
[1729774859457,3.94964,2531.9,2531.3,0.09091578]
[1729774859665,3.94967,2531.9,2531.3,4.04134578]
[1729774859948,3.94967,2531.9,2531.3,4.04138578]
[1729774860255,7.89935,2531.9,2531.3,4.04138578]
[1729774860415,3.94967,2531.9,2531.4,4.04116425]
[1729774860613,3.94967,2531.9,2531.4,0.09079425]
[1729774860856,4.723597,2531.9,2531.4,4.04115425]
[1729774861021,0.7896,2532.0,2531.4,4.04115425]
[1729774861022,4.73907,2532.0,2531.4,4.04115425]
[1729774861213,4.73907,2532.0,2531.4,4.04105425]
[1729774861558,0.7896,2532.0,2531.5,3.95011]
[1729774861851,3.94934,2532.1,2531.6,0.8064]
[1729774862062,3.94934,2532.1,2531.6,4.84699122]
[1729774862230,3.94899,2532.3,2531.7,3.94989]
[1729774862419,3.94913,2532.2,2531.8,0.09030822]
[1729774862754,3.94937,2532.1,2531.6,4.75645]
[1729774862958,7.89875,2532.1,2531.9,0.09010925]
[1729774863113,3.70928576,2532.4,2531.6,4.75646]
[1729774863315,3.94907,2532.3,2532.0,0.08998778]
[1729774863540,1.16072258,2532.2,2531.7,3.94991]
[1729774863714,1.16072258,2532.2,2531.6,0.8064]
[1729774863715,3.94914,2532.2,2532.1,0.08986632]
[1729774863916,3.94907,2532.3,2531.6,0.8064]
[1729774864114,3.94907,2532.3,2532.1,0.08986632]
[1729774864367,3.94923,2532.2,2531.6,4.75635]
[1729774864540,3.94906,2532.3,2532.2,0.08974487]
[1729774864861,3.94915,2532.2,2531.7,3.9499]
[1729774865151,3.94929,2532.1,2531.6,0.8064]
[1729774865559,7.89869,2532.1,2531.6,0.8064]
[1729774865721,3.94953,2532.0,2531.6,0.8064]
[1729774865921,3.94953,2532.0,2531.3,3.95042]
[1729774865922,3.94983,2531.8,2531.3,0.7938]
[1729774866227,3.94983,2531.8,2531.3,4.74432]
[1729774866434,3.94983,2531.8,2531.3,0.7938]
[1729774866636,3.95012,2531.6,2531.1,0.7785]
[1729774866878,0.395012,2531.5,2531.1,4.72926]
[1729774867042,3.9498,2531.8,2531.2,3.95059]
[1729774867360,3.9498,2531.8,2531.3,3.95052]
[1729774867739,4.739412,2532.0,2531.5,3.95015]
[1729774867939,4.739412,2532.0,2531.4,4.72879]
[1729774867940,3.94965,2531.9,2531.4,0.7785]
[1729774868152,3.94965,2531.9,2531.4,4.72873]
[1729774868463,4.739332,2532.0,2531.5,3.9502]
[1729774868640,4.7482,2532.1,2531.5,3.9502]
[1729774868841,3.94951,2532.0,2531.5,3.9502]
[1729774869470,0.7989,2532.1,2531.5,3.9502]
[1729774869471,4.74822,2532.1,2531.5,3.9502]
[1729774869672,0.7989,2532.1,2531.7,3.9499]
[1729774870163,3.94914,2532.2,2531.8,0.7785]
[1729774870972,3.94929,2532.1,2531.8,0.7785]
[1729774871256,3.94915,2532.2,2531.8,0.7785]
[1729774871455,4.80053846,2532.2,2531.8,0.7785]
[1729774871659,4.74786,2532.4,2531.8,4.72823]
[1729774871660,3.9489,2532.4,2531.8,4.72823]
[1729774871872,3.94905,2532.3,2531.8,0.7785]
[1729774872041,3.94915,2532.2,2531.8,0.7785]
[1729774872244,3.94882,2532.4,2531.8,0.7785]
[1729774872443,3.94901,2532.3,2531.8,4.72823]
[1729774873280,3.94914,2532.2,2531.8,0.7785]
[1729774873978,3.94879,2532.5,2531.9,3.9496]
[1729774874141,3.94882,2532.4,2531.8,0.7785]
[1729774874345,3.94899,2532.3,2531.8,4.72823]
[1729774874640,1.12960202,2532.5,2531.8,4.72824]
[1729774874641,3.94886,2532.4,2531.8,4.72824]
[1729774875044,3.949,2532.3,2531.8,4.72824]
[1729774875488,1.12960202,2532.5,2531.8,0.7785]
[1729774875691,3.9492,2532.2,2531.8,0.7785]
[1729774876179,3.72458576,2532.3,2531.5,0.8103]
[1729774876357,3.94916,2532.2,2531.7,3.94984]
[1729774876556,3.94931,2532.1,2531.6,3.95]
[1729774876760,3.94952,2532.0,2531.5,4.76045]
[1729774877347,3.94952,2532.0,2531.6,0.09031491]
[1729774877768,3.94931,2532.1,2531.6,4.04037491]
[1729774878161,5.11161158,2532.1,2531.6,4.04037491]
[1729774878547,5.11161158,2532.1,2531.6,4.04028491]
[1729774878761,9.06098158,2532.1,2531.6,4.04028491]
[1729774878961,3.94946,2532.0,2531.6,0.09031491]
[1729774879166,0.90610716,2532.0,2531.6,0.09031491]
[1729774879362,0.90610716,2532.0,2531.6,4.04037491]
[1729774879565,3.94931,2532.1,2531.6,4.04037491]
[1729774879774,3.72458576,2532.3,2531.6,0.09031491]
[1729774879960,3.94952,2532.0,2531.6,0.09031491]
[1729774880380,3.94962,2531.9,2531.6,0.09031491]
[1729774881386,3.94947,2532.0,2531.6,4.04036491]
[1729774881700,8.44851,2532.2,2531.7,3.94989]
[1729774881858,1.21730958,2532.1,2531.8,0.09002156]
[1729774882060,1.21730958,2532.1,2531.7,3.94989]
[1729774882380,1.21730958,2532.1,2531.8,0.09002156]
[1729774882584,1.21730958,2532.1,2531.7,3.94989]
[1729774882892,1.21730958,2532.1,2531.5,4.76049]
[1729774882893,5.16659958,2532.1,2531.9,0.08991557]
[1729774883090,0.96658496,2532.0,2531.8,0.09003706]
[1729774883387,4.49925,2532.2,2531.6,3.94994]
[1729774883388,3.94925,2532.2,2531.7,3.94981]
[1729774884460,3.94922,2532.2,2531.5,4.76044]
[1729774884808,3.94941,2532.1,2531.6,3.94992]
[1729774884970,3.94941,2532.1,2531.5,4.76044]
[1729774884971,1.16232158,2532.1,2531.7,3.94985]
[1729774885168,7.67364576,2532.3,2531.8,3.94974]
[1729774885369,3.0,2532.5,2531.9,0.7505]
[1729774885591,6.94867,2532.5,2532.0,3.94943]
[1729774885790,10.89748,2532.5,2532.0,3.94943]
[1729774885992,3.94886,2532.4,2531.9,0.7505]
[1729774886196,3.94921,2532.2,2531.7,3.94991]
[1729774886498,4.76811,2532.2,2531.7,3.94991]
[1729774886662,4.76811,2532.2,2531.8,0.7784]
[1729774887300,3.94921,2532.2,2531.8,4.72815]
[1729774887507,3.94921,2532.2,2531.8,0.7784]
[1729774887795,3.94921,2532.2,2531.8,4.72814]
[1729774887982,5.86322702,2532.4,2531.8,4.72814]
[1729774888183,3.949,2532.3,2531.8,4.72814]
[1729774888692,3.94917,2532.2,2531.8,0.7784]
[1729774889659,3.94917,2532.2,2531.3,3.95042]
[1729774889660,3.94935,2532.1,2531.3,3.95042]
[1729774889861,4.73873,2531.9,2531.4,3.95034]
[1729774890119,8.68846,2531.9,2531.4,3.95034]
[1729774890396,4.73873,2531.9,2531.4,3.95034]
[1729774890899,4.9304557,2532.2,2531.7,3.9499]
[1729774891105,3.94899,2532.3,2531.9,0.7712]
[1729774891266,3.94899,2532.3,2531.7,0.8750041]
[1729774891267,3.94842,2532.7,2532.1,0.7712]
[1729774891465,7.89716,2532.6,2532.1,4.72046]
[1729774891967,3.94855,2532.6,2532.1,4.72038]
[1729774892362,3.94855,2532.6,2532.2,0.08951247]
[1729774892588,3.94855,2532.6,2532.2,4.03862247]
[1729774893303,3.94867,2532.5,2532.2,0.08951247]
[1729774893598,3.94884,2532.4,2532.2,0.08951247]
[1729774893800,3.94866,2532.5,2532.2,0.08951247]
[1729774893801,3.94869,2532.5,2532.2,0.08951247]
[1729774894294,3.94853,2532.6,2532.2,4.03864247]
[1729774895296,3.94871,2532.5,2532.2,0.08951247]
[1729774896012,3.94852,2532.6,2532.2,4.03863247]
[1729774896160,3.94852,2532.6,2532.2,0.08951247]
[1729774896385,3.94868,2532.5,2532.2,0.08951247]
[1729774897285,5.5107,2532.5,2532.2,0.08951247]
[1729774897489,6.87905576,2532.3,2532.2,0.08951247]
[1729774897687,6.87905576,2532.3,2531.8,4.71614]
[1729774897887,3.9492,2532.2,2531.9,0.08971421]
[1729774898312,6.87952576,2532.0,2531.9,0.08971421]
[1729774898512,7.96242134,2532.0,2531.9,0.08971421]
[1729774898701,7.96242134,2532.0,2531.6,0.7557]
[1729774898898,3.9497,2531.9,2531.7,0.0899959]
[1729774899588,7.96244134,2532.0,2531.7,0.0899959]
[1729774901031,4.01298134,2532.0,2531.7,0.0899959]
[1729774901196,6.87954576,2532.0,2531.7,0.0899959]
[1729774901710,3.9496,2531.9,2531.4,4.70605]
[1729774901918,3.9496,2531.9,2531.5,0.09032023]
[1729774903236,3.9496,2531.9,2531.5,4.04053023]
[1729774904238,2.93008576,2532.0,2531.5,4.04043023]
[1729774904544,2.93008576,2532.0,2531.5,7.99058023]
[1729774904545,6.87962576,2532.0,2531.5,7.99058023]
[1729774904932,2.93008576,2532.0,2531.6,3.95006]
[1729774905238,4.77709,2532.1,2531.6,3.95006]
[1729774905742,4.77709,2532.1,2531.7,4.04000596]
[1729774905947,6.87917576,2532.3,2531.8,3.94966]
[1729774906119,3.94884,2532.4,2531.9,0.7892]
[1729774906318,3.94897,2532.3,2532.0,0.08981736]
[1729774906718,3.94884,2532.4,2532.0,0.08981736]
[1729774906933,0.828,2532.8,2532.1,0.7568]
[1729774907109,0.828,2533.2,2532.3,4.70569]
[1729774907305,0.828,2533.2,2532.5,3.94851]
[1729774907615,0.828,2533.2,2532.6,0.84587323]
[1729774910452,0.828,2533.2,2532.6,4.79434323]
[1729774910955,0.55,2533.4,2532.7,3.94831]
[1729774911251,3.55,2533.4,2532.7,3.94831]
[1729774911438,4.96882058,2533.4,2532.8,0.08845487]
[1729774912552,8.91620058,2533.4,2532.8,0.08845487]
[1729774912713,0.55,2533.2,2532.8,0.08845487]
[1729774912909,0.55,2533.2,2532.6,0.7568]
[1729774913108,3.48008576,2533.0,2532.7,0.08857627]
[1729774913347,3.48008576,2533.0,2532.3,4.70987]
[1729774913348,0.55,2532.8,2532.3,4.70987]
[1729774913552,0.55,2532.8,2532.3,0.7609]
[1729774914013,4.76689158,2532.9,2532.1,0.8081]
[1729774914014,0.55,2532.6,2532.1,0.8081]
[1729774914218,2.93008576,2532.7,2532.3,3.94893]
[1729774914550,0.55,2532.8,2532.3,3.94893]
[1729774915349,1.75698073,2532.8,2532.2,3.94912]
[1729774915951,5.70518073,2532.8,2532.1,4.75725]
[1729774917127,2.93008576,2532.7,2532.1,4.75725]
[1729774917720,2.93008576,2532.7,2532.2,3.9491]
[1729774918030,2.93008576,2532.7,2532.1,4.75725]
[1729774918349,4.09361241,2532.7,2532.1,4.75725]
[1729774918552,4.09361241,2532.7,2532.2,3.94912]
[1729774918755,4.09361241,2532.7,2532.1,4.75725]
[1729774919164,1.75698073,2532.8,2532.3,3.94897]
[1729774919333,7.70112576,2533.0,2532.3,3.94885]
[1729774919523,7.70112576,2533.0,2532.4,0.8121]
[1729774919524,0.55,2532.9,2532.4,0.8121]
[1729774919719,3.75318576,2533.0,2532.5,3.94863]
[1729774920765,3.75318576,2533.0,2532.5,3.94856]
[1729774920959,4.32336858,2532.9,2532.4,0.8121]
[1729774921270,0.55,2532.8,2532.2,0.8128]
[1729774921463,0.55,2532.8,2532.2,4.76178]
[1729774921618,3.94838,2532.7,2532.2,0.8128]
[1729774921822,4.73751,2532.6,2532.2,0.8128]
[1729774922023,0.55,2532.5,2532.0,0.8128]
[1729774922332,0.55,2532.5,2532.1,0.08912667]
[1729774922333,3.94885,2532.4,2532.1,0.08912667]